bitfinex/quotes_BTCUSD_20250902
["timestamp","ask_amount","ask_price","bid_price","bid_amount"]
[1756795125476,0.46329517,110690.0,110680.0,0.43561711]
[1756795125677,0.46329517,110690.0,110680.0,0.43361711]
[1756795126022,0.28261038,110690.0,110680.0,0.43561711]
[1756795126217,0.28261038,110690.0,110680.0,0.43261711]
[1756795126658,0.28261038,110690.0,110680.0,0.43561711]
[1756795126900,0.28261038,110690.0,110680.0,0.43761711]
[1756795128302,0.46329517,110690.0,110680.0,0.43761711]
[1756795128512,0.28261038,110690.0,110680.0,0.43761711]
[1756795128747,0.46329517,110690.0,110680.0,0.43761711]
[1756795128963,0.46329517,110690.0,110680.0,0.43749711]
[1756795129164,0.46527517,110690.0,110680.0,0.43749711]
[1756795129958,0.46527517,110690.0,110680.0,0.50697711]
[1756795131412,0.46527517,110690.0,110680.0,0.50689711]
[1756795131870,0.46329517,110690.0,110680.0,0.50689711]
[1756795132972,0.46527517,110690.0,110680.0,0.35233711]
[1756795133178,0.46527517,110690.0,110680.0,0.50689711]
[1756795135142,0.46329517,110690.0,110680.0,0.50689711]
[1756795135630,0.46329517,110690.0,110680.0,0.50681711]
[1756795136753,0.18068479,110690.0,110680.0,0.50681711]
[1756795136938,0.46527517,110690.0,110680.0,0.50681711]
[1756795137291,0.46329517,110690.0,110680.0,0.50681711]
[1756795137546,0.46329517,110690.0,110680.0,0.53397711]
[1756795137981,0.46527517,110690.0,110680.0,0.53425711]
[1756795138595,0.46527517,110690.0,110680.0,0.37949711]
[1756795138987,0.46527517,110690.0,110680.0,0.53421711]
[1756795139828,0.46527517,110690.0,110680.0,0.35351599]
[1756795140044,0.18266479,110690.0,110680.0,0.53421711]
[1756795140264,0.46329517,110690.0,110680.0,0.53421711]
[1756795141876,0.46329517,110690.0,110680.0,0.53417711]
[1756795143105,0.22156278,110700.0,110680.0,0.53417711]
[1756795143338,0.22156278,110700.0,110690.0,0.15795]
[1756795143339,0.50417316,110700.0,110690.0,0.15795]
[1756795143542,0.50615316,110700.0,110690.0,0.15795]
[1756795143734,0.22354278,110700.0,110690.0,0.15996]
[1756795143858,0.50615316,110700.0,110690.0,0.15795]
[1756795144089,0.50615316,110700.0,110690.0,0.15996]
[1756795144557,0.78876354,110700.0,110690.0,0.15996]
[1756795144793,0.78876354,110700.0,110690.0,0.00524]
[1756795144968,0.78876354,110700.0,110690.0,0.15996]
[1756795145181,0.78876354,110700.0,110690.0,0.15988]
[1756795145753,0.00470069,110700.0,110690.0,0.71934971]
[1756795145945,0.00470069,110700.0,110690.0,0.71709116]
[1756795146088,0.00470069,110700.0,110690.0,0.74424916]
[1756795146523,0.00470069,110700.0,110690.0,0.46163878]
[1756795146720,0.00470069,110700.0,110690.0,0.46159878]
[1756795147108,0.00470069,110700.0,110690.0,0.46259878]
[1756795147523,0.00470069,110700.0,110690.0,0.30799878]
[1756795147717,0.00470069,110700.0,110690.0,0.46259878]
[1756795147947,0.00470069,110700.0,110690.0,0.30799878]
[1756795148152,0.00470069,110700.0,110690.0,0.46255878]
[1756795152016,0.28719643,110700.0,110690.0,0.46255878]
[1756795153210,0.07432858,110700.0,110690.0,0.46255878]
[1756795153450,0.46514421,110700.0,110690.0,0.46247878]
[1756795153665,0.46514421,110700.0,110690.0,0.45723878]
[1756795155307,0.46514421,110700.0,110690.0,0.46019878]
[1756795156396,0.46514421,110700.0,110690.0,0.46011878]
[1756795158393,0.46514421,110700.0,110690.0,0.46218878]
[1756795158779,0.20801041,110710.0,110700.0,0.18066847]
[1756795158995,0.2080574,110710.0,110700.0,0.18362847]
[1756795159200,0.49253314,110710.0,110700.0,0.00296]
[1756795159405,0.49253314,110710.0,110690.0,0.46011878]
[1756795159623,0.2100374,110710.0,110690.0,0.45811878]
[1756795159825,0.28249574,110700.0,110690.0,0.45811878]
[1756795160033,0.46316421,110700.0,110690.0,0.46018878]
[1756795160673,0.28249574,110700.0,110690.0,0.45918878]
[1756795161057,0.49055314,110710.0,110690.0,0.45918878]
[1756795161230,0.49055314,110710.0,110700.0,0.18362847]
[1756795161231,0.2080574,110710.0,110700.0,0.18362847]
[1756795161455,0.49253314,110710.0,110700.0,0.18362847]
[1756795163470,0.49253314,110710.0,110700.0,0.18066847]
[1756795163676,0.2100374,110710.0,110700.0,0.00296]
[1756795163913,0.49253314,110710.0,110700.0,0.00296]
[1756795164818,0.49253314,110710.0,110700.0,0.18362847]
[1756795165047,0.49253314,110710.0,110700.0,0.18066847]
[1756795165276,0.2100374,110710.0,110700.0,0.18066847]
[1756795165506,0.49253314,110710.0,110700.0,0.18362847]
[1756795165769,0.49253314,110710.0,110690.0,0.30271878]
[1756795165983,0.2100374,110710.0,110700.0,0.1548]
[1756795166228,0.49253314,110710.0,110700.0,0.34049847]
[1756795167399,0.2100374,110710.0,110700.0,0.33842847]
[1756795167629,0.49253314,110710.0,110700.0,0.33842847]
[1756795168099,0.49253314,110710.0,110700.0,0.33546847]
[1756795168358,0.49253314,110710.0,110700.0,0.33842847]
[1756795169326,0.2100374,110710.0,110700.0,0.33842847]
[1756795169509,0.49253314,110710.0,110700.0,0.33842847]
[1756795169918,0.2100374,110710.0,110700.0,0.33842847]
[1756795170143,0.49253314,110710.0,110700.0,0.33842847]
[1756795170861,0.2100374,110710.0,110700.0,0.34049847]
[1756795171076,0.49253314,110710.0,110700.0,0.34049847]
[1756795172710,0.49055314,110710.0,110700.0,0.34049847]
[1756795177375,0.2080574,110710.0,110700.0,0.34049847]
[1756795177595,0.49055314,110710.0,110700.0,0.34049847]
[1756795178161,0.49253314,110710.0,110700.0,0.34049847]
[1756795178791,0.49055314,110710.0,110700.0,0.34049847]
[1756795179075,0.49253314,110710.0,110700.0,0.34049847]
[1756795179252,0.49055314,110710.0,110700.0,0.34049847]
[1756795180199,0.49253314,110710.0,110700.0,0.34049847]
[1756795180335,0.49253314,110710.0,110700.0,0.15983]
[1756795180550,0.18066847,110700.0,110690.0,0.37223878]
[1756795180757,0.46316421,110700.0,110690.0,0.52878878]
[1756795180983,0.18066847,110700.0,110690.0,0.52878878]
[1756795181170,0.46316421,110700.0,110690.0,0.52878878]
[1756795181895,0.28249574,110700.0,110690.0,0.52878878]
[1756795182097,0.2080574,110710.0,110690.0,0.52878878]
[1756795182257,0.28249574,110700.0,110690.0,0.52878878]
[1756795182790,0.49055314,110710.0,110700.0,0.18066847]
[1756795183028,0.49253314,110710.0,110700.0,0.18066847]
[1756795183173,0.49253314,110710.0,110700.0,0.18366847]
[1756795183943,0.2100374,110710.0,110700.0,0.18561847]
[1756795184154,0.49253314,110710.0,110700.0,0.18366847]
[1756795184300,0.49253314,110710.0,110700.0,0.003]
[1756795184532,0.49253314,110710.0,110690.0,0.52683878]
[1756795184732,0.49253314,110710.0,110690.0,0.52383878]
[1756795184961,0.49253314,110710.0,110690.0,0.52683878]
[1756795185935,0.49253314,110710.0,110700.0,0.003]
[1756795186987,0.49253314,110710.0,110700.0,0.18366847]
[1756795187976,0.49253314,110710.0,110700.0,0.003]
[1756795188494,0.49253314,110710.0,110700.0,0.18561847]
[1756795189314,0.49253314,110710.0,110700.0,0.00495]
[1756795189769,0.49253314,110710.0,110700.0,0.18561847]
[1756795192174,0.49055314,110710.0,110700.0,0.18561847]
[1756795193574,0.48098702,110710.0,110700.0,0.18561847]
[1756795196805,0.48098702,110710.0,110700.0,0.18661847]
[1756795196989,0.48098702,110710.0,110700.0,0.18861847]
[1756795197705,0.19849128,110710.0,110700.0,0.18861847]
[1756795197927,0.48098702,110710.0,110700.0,0.18861847]
[1756795200476,0.20789327,110720.0,110710.0,0.18065215]
[1756795200687,0.02725061,110720.0,110710.0,0.33996215]
[1756795201147,0.02725061,110720.0,110710.0,0.43187814]
[1756795201840,0.02725061,110720.0,110710.0,0.45903214]
[1756795203696,0.20788644,110720.0,110710.0,0.30467214]
[1756795203893,0.20788644,110720.0,110710.0,0.45891214]
[1756795204103,0.02725061,110720.0,110710.0,0.45891214]
[1756795204317,0.20788644,110720.0,110710.0,0.45891214]
[1756795205051,0.20788644,110720.0,110710.0,0.45919214]
[1756795205497,0.49038218,110720.0,110710.0,0.45919214]
[1756795205805,0.20788644,110720.0,110710.0,0.45919214]
[1756795206016,0.49038218,110720.0,110710.0,0.45919214]
[1756795207184,0.20788644,110720.0,110710.0,0.45919214]
[1756795207393,0.49038218,110720.0,110710.0,0.45919214]
[1756795208118,0.20788644,110720.0,110710.0,0.45919214]
[1756795208505,0.49038218,110720.0,110710.0,0.45919214]
[1756795209189,0.20788644,110720.0,110710.0,0.45919214]
[1756795209379,0.49038218,110720.0,110710.0,0.45919214]
[1756795209589,0.30968037,110720.0,110710.0,0.45919214]
[1756795209800,0.30968037,110720.0,110710.0,0.30467214]
[1756795210003,0.30968037,110720.0,110710.0,0.45903214]
[1756795210620,0.02725061,110720.0,110710.0,0.7414619]
[1756795211069,0.02725061,110720.0,110710.0,0.46203214]
[1756795211920,0.02725061,110720.0,110710.0,0.46403214]
[1756795213135,0.02725061,110720.0,110710.0,0.7464619]
[1756795213642,0.02725061,110720.0,110710.0,0.7463819]
[1756795215028,0.02725061,110720.0,110710.0,0.30967214]
[1756795215238,0.30968037,110720.0,110710.0,0.46383214]
[1756795217279,0.02725061,110720.0,110710.0,0.46383214]
[1756795217495,0.30968037,110720.0,110710.0,0.46383214]
[1756795217696,0.02725061,110720.0,110710.0,0.46383214]
[1756795218606,0.02725061,110720.0,110710.0,0.5921019]
[1756795218830,0.02725061,110720.0,110710.0,0.7462219]
[1756795219268,0.02725061,110720.0,110710.0,0.30967214]
[1756795219472,0.02725061,110720.0,110710.0,0.7461819]
[1756795221078,0.02725061,110720.0,110710.0,0.46375214]
[1756795221284,0.02725061,110720.0,110710.0,0.7461819]
[1756795231297,0.02725061,110720.0,110710.0,0.46375214]
[1756795231498,0.02725061,110720.0,110710.0,0.7461819]
[1756795237697,0.00690398,110720.0,110710.0,0.7461819]
[1756795242029,0.00690398,110720.0,110710.0,0.46375214]
[1756795242307,0.00690398,110720.0,110710.0,0.7461819]
[1756795246255,0.00690398,110720.0,110710.0,0.46375214]
[1756795246462,0.00690398,110720.0,110710.0,0.7461819]
[1756795247142,0.00690398,110720.0,110710.0,0.46375214]
[1756795247355,0.00690398,110720.0,110710.0,0.7461819]
[1756795248777,0.00690398,110720.0,110710.0,0.46375214]
[1756795249206,0.00690398,110720.0,110710.0,1.02861166]
[1756795249417,0.00690398,110720.0,110710.0,0.87469096]
[1756795249846,0.0002,110730.0,110720.0,1.36792511]
[1756795250061,0.00024698,110730.0,110720.0,1.6874311]
[1756795250272,0.00024698,110730.0,110720.0,0.73697182]
[1756795250495,0.00024698,110730.0,110720.0,0.76411582]
[1756795250709,0.00024698,110730.0,110720.0,1.48425534]
[1756795251130,0.00024698,110730.0,110720.0,1.48625534]
[1756795251566,0.00024698,110730.0,110720.0,1.43625534]
[1756795252003,0.00024698,110730.0,110720.0,1.48625534]
[1756795252683,0.00024698,110730.0,110720.0,1.82951453]
[1756795252912,0.00024698,110730.0,110720.0,1.87951453]
[1756795253126,0.00024698,110730.0,110720.0,0.87694525]
[1756795253376,0.00024698,110730.0,110720.0,1.94712477]
[1756795253580,0.00024698,110730.0,110720.0,1.99812477]
[1756795253784,0.00024698,110730.0,110720.0,2.00212477]
[1756795254202,0.0442,110740.0,110730.0,0.81641786]
[1756795254351,0.0442,110740.0,110730.0,1.28368385]
[1756795254558,0.0442,110740.0,110730.0,1.67571385]
[1756795254758,0.0442,110740.0,110730.0,1.70285285]
[1756795255484,0.0442,110740.0,110730.0,1.94949285]
[1756795255904,0.0442,110740.0,110730.0,2.10481285]
[1756795256366,0.0442,110740.0,110730.0,1.95149285]
[1756795256575,0.0442,110740.0,110730.0,2.10677285]
[1756795257235,0.0442,110740.0,110730.0,1.95149285]
[1756795257479,0.0442,110740.0,110730.0,2.10677285]
[1756795257689,0.0442,110740.0,110730.0,1.66906309]
[1756795257888,0.0442,110740.0,110730.0,1.5645142]
[1756795258105,0.0442,110740.0,110730.0,1.79694396]
[1756795258311,0.0442,110740.0,110730.0,1.61906309]
[1756795258524,0.0442,110740.0,110730.0,1.82422309]
[1756795259176,0.0442,110740.0,110730.0,1.66906309]
[1756795259377,0.0442,110740.0,110730.0,1.77422309]
[1756795259609,0.0442,110740.0,110730.0,1.66906309]
[1756795259790,0.0442,110740.0,110730.0,1.82422309]
[1756795260146,0.0442,110740.0,110730.0,1.42422309]
[1756795260547,0.0442,110740.0,110730.0,1.55149285]
[1756795260754,0.0442,110740.0,110730.0,1.42418309]
[1756795261118,0.0442,110740.0,110730.0,1.63744309]
[1756795261313,0.0442,110740.0,110730.0,1.68744309]
[1756795261599,0.0442,110740.0,110730.0,2.21479285]
[1756795261793,0.0442,110740.0,110730.0,1.80501333]
[1756795262023,0.0442,110740.0,110730.0,2.36987285]
[1756795262982,0.0442,110740.0,110730.0,1.93236309]
[1756795263193,0.0442,110740.0,110730.0,1.75509333]
[1756795263397,0.0442,110740.0,110730.0,2.03752309]
[1756795263613,0.0442,110740.0,110730.0,2.08752309]
[1756795264099,0.0442,110740.0,110730.0,2.65238261]
[1756795264100,1e-08,110740.0,110730.0,2.65238261]
[1756795264316,0.0304876,110760.0,110750.0,0.20152572]
[1756795264569,0.0304876,110760.0,110750.0,1.08322123]
[1756795264772,0.0304876,110760.0,110750.0,1.08820123]
[1756795264975,0.0304876,110760.0,110750.0,1.16533723]
[1756795265203,0.0304876,110760.0,110750.0,1.56533723]
[1756795265665,0.0304876,110760.0,110750.0,1.56833723]
[1756795266309,0.0304876,110760.0,110750.0,1.90833723]
[1756795266522,0.0304876,110760.0,110750.0,1.95833723]
[1756795266763,0.0304876,110760.0,110750.0,1.43445941]
[1756795266764,1e-08,110760.0,110750.0,1.43445941]
[1756795267844,1e-08,110760.0,110750.0,1.99931893]
[1756795268293,1e-08,110760.0,110750.0,2.00231893]
[1756795268475,1e-08,110760.0,110750.0,2.00223893]
[1756795270335,1e-08,110760.0,110750.0,2.00215893]
[1756795270745,1e-08,110760.0,110750.0,1.71968917]
[1756795271195,1e-08,110760.0,110750.0,2.00211893]
[1756795271503,1e-08,110760.0,110750.0,1.71930304]
[1756795271704,1e-08,110760.0,110750.0,1.43725941]
[1756795271937,1e-08,110760.0,110750.0,1.71930304]
[1756795272931,1e-08,110760.0,110750.0,1.43725941]
[1756795273130,1e-08,110760.0,110750.0,1.56402304]
[1756795273341,1e-08,110760.0,110750.0,1.71918304]
[1756795273536,1e-08,110760.0,110750.0,1.56402304]
[1756795273987,1e-08,110760.0,110750.0,1.71914304]
[1756795274743,1e-08,110760.0,110750.0,1.56402304]
[1756795274946,1e-08,110760.0,110750.0,1.71910304]
[1756795276592,1e-08,110760.0,110750.0,1.56402304]
[1756795276804,0.46175811,110800.0,110790.0,0.1805217]
[1756795277015,0.47065432,110800.0,110790.0,0.49683769]
[1756795277627,0.20866469,110800.0,110790.0,0.49683769]
[1756795278061,0.49170832,110800.0,110790.0,0.49683769]
[1756795278803,0.49170832,110800.0,110790.0,0.34183769]
[1756795279016,0.49170832,110800.0,110790.0,0.31627599]
[1756795279231,0.20966469,110800.0,110790.0,0.31627599]
[1756795279438,0.49170832,110800.0,110790.0,0.31627599]
[1756795279635,0.49170832,110800.0,110790.0,0.49679769]
[1756795281742,0.49170832,110800.0,110790.0,0.31627599]
[1756795281953,0.49170832,110800.0,110790.0,0.16131599]
[1756795282153,0.20966469,110800.0,110790.0,0.16131599]
[1756795282356,0.50859964,110800.0,110790.0,0.2242]
[1756795283152,0.50859964,110800.0,110790.0,0.0694]
[1756795283346,0.50017736,110800.0,110790.0,0.22416]
[1756795283574,0.22658143,110800.0,110790.0,0.22416]
[1756795283783,0.50862506,110800.0,110790.0,0.22416]
[1756795283979,0.50862666,110800.0,110790.0,0.22416]
[1756795284177,0.50862666,110800.0,110790.0,0.0694]
[1756795284471,0.50862666,110800.0,110790.0,0.22412]
[1756795285313,0.50862666,110800.0,110790.0,0.0694]
[1756795285731,0.50862666,110800.0,110790.0,0.22404]
[1756795285933,0.180538,110780.0,110770.0,0.28611631]
[1756795286132,0.46258163,110780.0,110770.0,0.5327123]
[1756795286393,0.180538,110780.0,110770.0,0.18845199]
[1756795286595,0.47103444,110780.0,110770.0,0.16131599]
[1756795286800,0.48794166,110780.0,110770.0,0.22428]
[1756795287020,0.48794259,110780.0,110770.0,0.22528]
[1756795287241,0.50742181,110780.0,110770.0,0.22628]
[1756795287443,0.48794259,110780.0,110770.0,0.22628]
[1756795287650,6.58990618,110780.0,110770.0,1e-08]
[1756795287861,0.18065215,110710.0,110700.0,0.0694]
[1756795288077,0.18065215,110710.0,110700.0,0.16131599]
[1756795288291,0.18065215,110710.0,110700.0,0.18231599]
[1756795288503,0.46269578,110710.0,110700.0,0.18231599]
[1756795289284,0.46269578,110710.0,110700.0,0.18240087]
[1756795289741,0.48284648,110710.0,110700.0,0.18240087]
[1756795289938,0.48284648,110710.0,110700.0,0.18340087]
[1756795290301,0.48284648,110710.0,110700.0,0.18440087]
[1756795292200,0.20080285,110710.0,110700.0,0.18440087]
[1756795292404,0.48284648,110710.0,110700.0,0.18440087]
[1756795292816,0.48284648,110710.0,110700.0,0.31824087]
[1756795293027,0.48284648,110710.0,110700.0,0.16340087]
[1756795293225,0.18065215,110710.0,110700.0,0.16340087]
[1756795293425,0.46269578,110710.0,110700.0,0.16340087]
[1756795293692,0.46269578,110710.0,110700.0,0.31836087]
[1756795293895,0.18065215,110710.0,110700.0,0.32360087]
[1756795294036,0.46269578,110710.0,110700.0,0.32360087]
[1756795294235,0.46269578,110710.0,110700.0,0.32146087]
[1756795294448,0.48347972,110710.0,110700.0,0.32146087]
[1756795294649,0.20143609,110710.0,110700.0,0.32146087]
[1756795294885,0.48347972,110710.0,110700.0,0.32146087]
[1756795295138,0.48347972,110710.0,110700.0,0.31836087]
[1756795295346,0.48347972,110710.0,110700.0,0.32157087]
[1756795295497,0.48347972,110710.0,110700.0,0.31836087]
[1756795295706,0.48347972,110710.0,110700.0,0.32157087]
[1756795295929,0.48347972,110710.0,110700.0,0.32362087]
[1756795296126,0.48347972,110710.0,110700.0,0.32157087]
[1756795297934,0.48347972,110710.0,110700.0,0.31836087]
[1756795298340,0.20143609,110710.0,110700.0,0.32362087]
[1756795298563,0.48347972,110710.0,110700.0,0.32157087]
[1756795299375,0.48347972,110710.0,110700.0,0.32362087]
[1756795299571,0.48347972,110710.0,110700.0,0.16661087]
[1756795299797,0.48347972,110710.0,110700.0,0.32390087]
[1756795300002,0.20143609,110710.0,110700.0,0.32390087]
[1756795300195,0.48347972,110710.0,110700.0,0.32390087]
[1756795302288,0.20143609,110710.0,110700.0,0.32390087]
[1756795302463,0.48347972,110710.0,110700.0,0.32390087]
[1756795303464,0.20143609,110710.0,110700.0,0.32390087]
[1756795303670,0.48347972,110710.0,110700.0,0.32390087]
[1756795306835,0.4833492,110710.0,110700.0,0.32390087]
[1756795307861,0.20130557,110710.0,110700.0,0.32390087]
[1756795308090,0.4833492,110710.0,110700.0,0.50456934]
[1756795308470,0.4833492,110710.0,110700.0,0.32390087]
[1756795310514,0.4833492,110710.0,110700.0,0.50456934]
[1756795312032,0.4833492,110710.0,110700.0,0.32390087]
[1756795312312,0.20130557,110710.0,110700.0,0.32390087]
[1756795312502,0.4833492,110710.0,110700.0,0.32390087]
[1756795312945,0.4833492,110710.0,110700.0,0.32346087]
[1756795313189,0.4833492,110710.0,110700.0,0.16661087]
[1756795313423,0.4833492,110710.0,110700.0,0.31812087]
[1756795313657,0.4833492,110710.0,110700.0,0.16340087]
[1756795313933,0.76539283,110710.0,110700.0,0.15676488]
[1756795314172,0.4833492,110710.0,110700.0,0.15676488]
[1756795315117,0.4833492,110710.0,110700.0,0.15476488]
[1756795315549,0.50279688,110710.0,110700.0,0.15468488]
[1756795316022,0.50379688,110710.0,110700.0,0.15468488]
[1756795316256,0.50479688,110710.0,110700.0,0.15468488]
[1756795316462,0.53650591,110710.0,110700.0,0.15468488]
[1756795317524,0.59318275,110710.0,110700.0,0.15468488]
[1756795318423,0.87522638,110710.0,110700.0,8.488e-05]
[1756795318668,1.24416427,110710.0,110700.0,8.488e-05]
[1756795318906,1.23620365,110710.0,110700.0,8.488e-05]
[1756795319343,1.20726576,110710.0,110700.0,8.488e-05]
[1756795319574,1.23620365,110710.0,110700.0,8.488e-05]
[1756795322370,6.38566545,110710.0,110700.0,8.488e-05]
[1756795322638,6.24503324,110710.0,110700.0,8.488e-05]
[1756795322865,6.43612726,110710.0,110700.0,8.488e-05]
[1756795323858,6.43608726,110710.0,110700.0,8.488e-05]
[1756795324334,6.37093535,110710.0,110700.0,8.488e-05]
[1756795324542,6.34780694,110710.0,110700.0,8.488e-05]
[1756795324766,6.37107366,110710.0,110700.0,8.488e-05]
[1756795325620,0.58524075,110710.0,110700.0,0.00501488]
[1756795325836,0.73131424,110710.0,110700.0,0.00501488]
[1756795326052,1.0388384,110710.0,110700.0,0.00501488]
[1756795328154,1.03883557,110710.0,110700.0,0.00501488]
[1756795328382,1.41279519,110710.0,110700.0,8.488e-05]
[1756795328604,6.57302995,110710.0,110700.0,8.488e-05]
[1756795328854,6.54055411,110710.0,110700.0,8.488e-05]
[1756795329126,6.45226012,110710.0,110700.0,8.488e-05]
[1756795331963,6.29738012,110710.0,110700.0,8.488e-05]
[1756795332257,6.45218012,110710.0,110700.0,8.488e-05]
[1756795332466,5.73329286,110710.0,110700.0,8.488e-05]
[1756795332581,6.45214012,110710.0,110700.0,8.488e-05]
[1756795333207,6.49070082,110710.0,110700.0,8.488e-05]
[1756795333405,6.75205865,110710.0,110700.0,8.488e-05]
[1756795333652,7.66765929,110710.0,110700.0,8.488e-05]
[1756795333860,5.87599035,110710.0,110700.0,8.488e-05]
[1756795334056,5.86085786,110710.0,110700.0,0.00501488]
[1756795334257,5.7799883,110710.0,110700.0,0.00501488]
[1756795334465,5.23262688,110710.0,110700.0,0.00501488]
[1756795334727,0.73517224,110710.0,110700.0,0.00501488]
[1756795334933,1.01793551,110710.0,110700.0,0.00501488]
[1756795335196,6.31752561,110710.0,110700.0,8.488e-05]
[1756795335389,1.3474874,110710.0,110700.0,0.00303488]
[1756795335596,1.34103344,110710.0,110700.0,0.00303488]
[1756795335795,1.35148817,110710.0,110700.0,8.488e-05]
[1756795335997,1.33458024,110710.0,110700.0,8.488e-05]
[1756795336482,1.35893117,110710.0,110700.0,8.488e-05]
[1756795337009,0.79340463,110710.0,110700.0,8.488e-05]
[1756795337226,1.35893117,110710.0,110700.0,8.488e-05]
[1756795337447,1.45084716,110710.0,110700.0,8.488e-05]
[1756795337698,1.35893117,110710.0,110700.0,8.488e-05]
[1756795337909,6.30362217,110710.0,110700.0,8.488e-05]
[1756795338730,6.30362482,110710.0,110700.0,8.488e-05]
[1756795338942,6.58638809,110710.0,110700.0,8.488e-05]
[1756795339162,6.72818079,110710.0,110700.0,8.488e-05]
[1756795339371,6.70382986,110710.0,110700.0,8.488e-05]
[1756795339586,6.75252928,110710.0,110700.0,8.488e-05]
[1756795340694,6.84444527,110710.0,110700.0,8.488e-05]
[1756795341065,6.75252928,110710.0,110700.0,8.488e-05]
[1756795341389,6.72006403,110710.0,110700.0,8.488e-05]
[1756795341621,6.74722703,110710.0,110700.0,8.488e-05]
[1756795342428,6.43572587,110710.0,110700.0,0.00501488]
[1756795343052,5.60010452,110710.0,110700.0,0.00501488]
[1756795343370,1.35922603,110710.0,110700.0,0.00501488]
[1756795344153,1.35922603,110710.0,110700.0,0.00303488]
[1756795345282,1.35922603,110710.0,110700.0,8.488e-05]
[1756795345483,1.32672945,110710.0,110700.0,8.488e-05]
[1756795345684,6.6910873,110710.0,110700.0,8.488e-05]
[1756795345899,6.69955402,110710.0,110700.0,8.488e-05]
[1756795346369,6.69943402,110710.0,110700.0,8.488e-05]
[1756795347501,6.66693744,110710.0,110700.0,8.488e-05]
[1756795348543,6.69943402,110710.0,110700.0,8.488e-05]
[1756795348755,6.79135001,110710.0,110700.0,8.488e-05]
[1756795349213,6.7040001,110710.0,110700.0,8.488e-05]
[1756795349422,6.7076221,110710.0,110700.0,8.488e-05]
[1756795349626,6.75632152,110710.0,110700.0,8.488e-05]
[1756795350046,6.73687384,110710.0,110700.0,8.488e-05]
[1756795350261,6.75639616,110710.0,110700.0,8.488e-05]
[1756795350798,6.75627616,110710.0,110700.0,8.488e-05]
[1756795351007,6.75627616,110710.0,110700.0,0.00501488]
[1756795351008,5.67330904,110710.0,110700.0,0.00501488]
[1756795351194,6.42019712,110710.0,110700.0,0.00501488]
[1756795351951,6.39579558,110710.0,110700.0,0.00501488]
[1756795352733,6.67855885,110710.0,110700.0,0.00303488]
[1756795353109,6.67855885,110710.0,110700.0,8.488e-05]
[1756795353315,6.72725827,110710.0,110700.0,8.488e-05]
[1756795353548,6.17342685,110710.0,110700.0,8.488e-05]
[1756795353906,6.12472743,110710.0,110700.0,8.488e-05]
[1756795354784,6.12456743,110710.0,110700.0,0.00501488]
[1756795355334,6.12456743,110710.0,110700.0,0.00303488]
[1756795355578,6.12456743,110710.0,110700.0,8.488e-05]
[1756795355579,6.17326685,110710.0,110700.0,8.488e-05]
[1756795356045,5.89098747,110710.0,110700.0,8.488e-05]
[1756795356178,6.07165192,110710.0,110700.0,8.488e-05]
[1756795356800,6.07165191,110710.0,110700.0,8.488e-05]
[1756795358772,5.91485191,110710.0,110700.0,0.00210488]
[1756795358993,6.07141191,110710.0,110700.0,0.00530488]
[1756795359219,5.838444,110710.0,110700.0,0.00530488]
[1756795359494,0.70642881,110710.0,110700.0,0.00530488]
[1756795359706,1.03795506,110710.0,110700.0,0.00530488]
[1756795362052,5.98264606,110710.0,110700.0,8.488e-05]
[1756795362266,6.00358488,110710.0,110700.0,8.488e-05]
[1756795362864,6.01205809,110710.0,110700.0,8.488e-05]
[1756795363077,6.19589007,110710.0,110700.0,8.488e-05]
[1756795363297,6.10397367,110710.0,110700.0,8.488e-05]
[1756795363549,6.12092006,110710.0,110700.0,0.00328488]
[1756795363991,6.12092041,110710.0,110700.0,8.488e-05]
[1756795364458,6.14532351,110710.0,110700.0,8.488e-05]
[1756795365131,6.23549998,110710.0,110700.0,8.488e-05]
[1756795365359,6.14532351,110710.0,110700.0,8.488e-05]
[1756795365848,6.14894451,110710.0,110700.0,8.488e-05]
[1756795366048,6.15703799,110710.0,110700.0,8.488e-05]
[1756795366734,6.14856478,110710.0,110700.0,8.488e-05]
[1756795366957,6.15704125,110710.0,110700.0,8.488e-05]
[1756795367462,6.15704158,110710.0,110700.0,8.488e-05]
[1756795368448,6.15680158,110710.0,110700.0,0.00530488]
[1756795369071,5.70606319,110710.0,110700.0,0.00530488]
[1756795369278,6.03219601,110710.0,110700.0,0.00530488]
[1756795369423,6.00677334,110710.0,110700.0,0.00530488]
[1756795371223,5.55607495,110710.0,110700.0,0.00530488]
[1756795371426,6.00713334,110710.0,110700.0,0.00530488]
[1756795371636,5.98272652,110710.0,110700.0,0.00530488]
[1756795372189,5.68826813,110710.0,110700.0,0.00530488]
[1756795372615,5.98272652,110710.0,110700.0,0.00530488]
[1756795372823,1.03803552,110710.0,110700.0,0.00530488]
[1756795373884,0.74357713,110710.0,110700.0,0.00530488]
[1756795374092,1.03803552,110710.0,110700.0,0.00530488]
[1756795376519,0.74357713,110710.0,110700.0,0.00530488]
[1756795376733,1.03775552,110710.0,110700.0,0.00530488]
[1756795377402,1.05855976,110710.0,110700.0,0.00530488]
[1756795377619,1.06491231,110710.0,110700.0,0.00530488]
[1756795378619,0.77045392,110710.0,110700.0,0.00530488]
[1756795379134,1.06491231,110710.0,110700.0,0.00530488]
[1756795379495,1.33553914,110710.0,110700.0,0.00530488]
[1756795381154,1.17921914,110710.0,110700.0,0.00530488]
[1756795381380,0.61413392,110710.0,110700.0,0.00530488]
[1756795381583,1.04656398,110710.0,110700.0,0.00530488]
[1756795381786,1.32910659,110710.0,110700.0,0.00530488]
[1756795382601,0.60778137,110710.0,110700.0,0.18597335]
[1756795382774,0.67952398,110710.0,110700.0,0.18597335]
[1756795383248,0.67952398,110710.0,110700.0,0.00530488]
[1756795383452,0.66000166,110710.0,110700.0,0.00530488]
[1756795383708,0.94254427,110710.0,110700.0,0.00530488]
[1756795385945,0.94254427,110710.0,110700.0,0.00328488]
[1756795386788,0.94254427,110710.0,110700.0,8.488e-05]
[1756795387155,0.96970427,110710.0,110700.0,8.488e-05]
[1756795388316,0.98921078,110710.0,110700.0,8.488e-05]
[1756795389573,0.98921078,110710.0,110700.0,0.00301488]
[1756795390025,0.83285078,110710.0,110700.0,0.00515488]
[1756795390279,0.98957078,110710.0,110700.0,0.00515488]
[1756795392345,0.42448556,110710.0,110700.0,0.00515488]
[1756795392549,0.98957078,110710.0,110700.0,0.00515488]
[1756795393392,0.98957078,110710.0,110700.0,8.488e-05]
[1756795395144,6.56315494,110710.0,110700.0,8.488e-05]
[1756795395551,6.28079957,110710.0,110700.0,8.488e-05]
[1756795395748,6.51450826,110710.0,110700.0,8.488e-05]
[1756795395962,6.46393654,110710.0,110700.0,8.488e-05]
[1756795397253,6.315686,110710.0,110700.0,8.488e-05]
[1756795397482,6.472126,110710.0,110700.0,8.488e-05]
[1756795397729,6.47213176,110710.0,110700.0,8.488e-05]
[1756795399158,6.83457362,110710.0,110700.0,1e-08]
[1756795399380,6.90950616,110710.0,110700.0,1e-08]
[1756795399569,6.87700958,110710.0,110700.0,1e-08]
[1756795400289,6.90952864,110710.0,110700.0,1e-08]
[1756795401164,6.87700958,110710.0,110700.0,1e-08]
[1756795401386,6.80207704,110710.0,110700.0,1e-08]
[1756795403269,6.83456669,110710.0,110700.0,1e-08]
[1756795403799,6.80207704,110710.0,110700.0,1e-08]
[1756795404239,6.86259149,110710.0,110700.0,1e-08]